fUST/lending_fUST_20250528
["ID","MTS","AMOUNT","RATE_DAILY","PERIOD"]
[362633134,1748382650390,-413.0255524,0.00022191,2]
[362633135,1748382650399,-896.99,0.00022191,2]
[362633136,1748382650408,-430.0,0.00022191,2]
[362633137,1748382650418,-500.0,0.0002226,2]
[362633138,1748382650427,-154.50844702,0.00022329,2]
[362633139,1748382650437,-488.0,0.00022384,2]
[362633140,1748382650446,-707.89,0.00022465,2]
[362633141,1748382650455,-896.99,0.00022465,2]
[362633142,1748382650465,-430.0,0.00022465,2]
[362633143,1748382650475,-143123.0,0.000225,7]
[362633144,1748382650486,-5806.38,0.000225,2]
[362633145,1748382650496,-3430.2,0.000225,7]
[362633146,1748382650506,-154.50844702,0.0002263,2]
[362633147,1748382650515,-707.89,0.00022739,2]
[362633148,1748382650525,-896.99,0.00022739,2]
[362633149,1748382650534,-241.08393872,0.00022739,2]
[362633150,1748382650543,-154.50844702,0.00022904,2]
[362633151,1748382650552,-500.0,0.00022944,2]
[362633152,1748382650562,-155.31220813,0.00022959,2]
[362633153,1748382650571,-707.89,0.00023013,2]
[362633154,1748382650581,-896.99,0.00023013,2]
[362633155,1748382650590,-707.89,0.00023287,2]
[362633156,1748382650600,-896.99,0.00023287,2]
[362633157,1748382650610,-795.57,0.00023327,2]
[362633158,1748382650620,-500.0,0.00023356,2]
[362633159,1748382650630,-500.0,0.00023374,2]
[362633160,1748382650640,-1351.13,0.000234,7]
[362633161,1748382650649,-707.89,0.00023561,2]
[362633162,1748382650659,-896.99,0.00023561,2]
[362633163,1748382650669,-143123.0,0.000238,7]
[362633164,1748382650678,-707.89,0.00023835,2]
[362633165,1748382650687,-896.99,0.00023835,2]
[362633166,1748382650696,-2200.0,0.00023914,2]
[362633167,1748382650706,-798.356,0.00023914,2]
[362633168,1748382650716,-155.31220813,0.0002393,2]
[362633169,1748382650725,-3430.2,0.000241,7]
[362633170,1748382650735,-228.4825,0.00024109,2]
[362633171,1748382650745,-707.89,0.00024109,2]
[362633172,1748382650755,-896.99,0.00024109,2]
[362633173,1748382650765,-4770.46957645,0.00024168,15]
[362633174,1748382650774,-5806.38,0.000242,2]
[362633175,1748382650783,-707.89,0.00024383,2]
[362633176,1748382650792,-896.99,0.00024383,2]
[362633177,1748382650802,-1591.13,0.00024438,2]
[362633178,1748382650811,-500.0,0.00024452,2]
[362633179,1748382650821,-800.531412,0.000245,3]
[362633180,1748382650831,-458.51,0.00024566,15]
[362633181,1748382650840,-456.965,0.00024657,3]
[362633182,1748382650850,-707.89,0.00024657,2]
[362633183,1748382650861,-896.99,0.00024657,2]
[362633184,1748382650872,-191.19363291,0.00024658,2]
[362633185,1748382650881,-3688.96,0.0002468,15]
[362633186,1748382650891,-1351.13,0.000247,7]
[362633187,1748382650900,-4588.99,0.000248,15]
[362633188,1748382650909,-153.4,0.000249,31]
[362633189,1748382650919,-153.4,0.000249,31]
[362633190,1748382650928,-153.4,0.000249,31]
[362633191,1748382650938,-153.4,0.000249,31]
[362633192,1748382650947,-153.4,0.000249,31]
[362633193,1748382650956,-153.4,0.000249,31]
[362633194,1748382650966,-153.4,0.000249,31]
[362633195,1748382650976,-153.4,0.000249,31]
[362633196,1748382650985,-153.4,0.000249,31]
[362633197,1748382650994,-153.4,0.000249,31]
[362633198,1748382651004,-153.4,0.000249,31]
[362633199,1748382651013,-153.4,0.000249,31]
[362633200,1748382651136,-153.4,0.000249,31]
[362633201,1748382651145,-153.4,0.000249,31]
[362633202,1748382651155,-153.4,0.000249,31]
[362633203,1748382651164,-153.4,0.000249,31]
[362633204,1748382651174,-153.4,0.000249,31]
[362633205,1748382651184,-1161.38469236,0.000249,2]
[362633206,1748382651194,-627090.179184,0.000249,2]
[362633207,1748382651203,-155.31220813,0.000249,2]
[362633208,1748382651212,-707.89,0.00024931,2]
[362633209,1748382651222,-896.99,0.00024931,2]
[362633210,1748382651231,-1161.38469227,0.00024963,2]
[362633211,1748382651241,-795.57672515,0.00025,3]
[362633212,1748382651251,-6057.74953006,0.00025,2]
[362633213,1748382651261,-198805.75388762,0.00025,30]
[362633214,1748382651270,-119900.68034411,0.00025,30]
[362633215,1748382651279,-684047.50023432,0.00025,30]
[362633216,1748382651295,-217856.33634961,0.00025,30]
[362633217,1748382651304,-560.0,0.00025,2]
[362633218,1748382651314,-21588.35669432,0.00025,10]
[362633219,1748382651324,-49067.09696032,0.00025,30]
[362640439,1748383474426,331.069915,0.00013699,2]
[362640513,1748383832450,-293.44730646,0.00017994,2]
[362640515,1748383832461,-391.0105617,0.00018176,2]
[362640517,1748383832472,-1024.3452277,0.00018177,2]
[362640519,1748383832481,-216.48645555,0.00019078,2]
[362640521,1748383832491,-183.62709097,0.00019078,2]
[362640523,1748383832500,-189.0,0.00019174,2]
[362640525,1748383832511,-300.0,0.00019174,2]
[362640527,1748383832520,-500.0,0.00019175,2]
[362640529,1748383832530,-619.83645598,0.00019175,2]
[362640531,1748383832540,-500.0,0.00019175,2]
[362640533,1748383832549,-500.0,0.00019175,2]
[362640535,1748383832559,-500.0,0.00019175,2]
[362640537,1748383832569,-500.0,0.00019175,2]
[362640539,1748383832579,-500.0,0.00019175,2]
[362640541,1748383832589,-263.95252075,0.00019175,2]
[362640543,1748383832598,-500.0,0.00019175,2]
[362640545,1748383832608,-194.60584157,0.00019175,2]
[362640547,1748383832617,-500.0,0.00019175,2]
[362640549,1748383832627,-500.0,0.00019175,2]
[362640550,1748383832637,-500.0,0.00019175,2]
[362640552,1748383832647,-500.0,0.00019175,2]
[362640554,1748383832657,-500.0,0.00019175,2]
[362640556,1748383832666,-500.0,0.00019175,2]
[362640559,1748383832676,-500.0,0.00019175,2]
[362640561,1748383832685,-500.0,0.00019175,2]
[362640562,1748383832696,-500.0,0.00019175,2]
[362640564,1748383832706,-500.0,0.00019175,2]
[362640566,1748383832715,-500.0,0.00019175,2]
[362640568,1748383832724,-209.07201647,0.00019175,2]
[362640570,1748383832734,-169.2229285,0.00019175,2]
[362640572,1748383832743,-500.0,0.00019175,2]
[362640574,1748383832753,-159.92764735,0.00019175,2]
[362640576,1748383832762,-500.0,0.00019175,2]
[362640578,1748383832772,-500.0,0.00019175,2]
[362640581,1748383832785,-500.0,0.00019175,2]
[362640583,1748383832794,-500.0,0.00019175,2]
[362640585,1748383832803,-500.0,0.00019175,2]
[362640587,1748383832812,-500.0,0.00019175,2]
[362640589,1748383832821,-500.0,0.00019175,2]
[362640591,1748383832830,-400.0,0.00019175,2]
[362640593,1748383832840,-300.0,0.00019175,2]
[362640595,1748383832849,-430.0,0.00019178,2]
[362640597,1748383832858,-430.0,0.00019178,2]
[362640599,1748383832867,-430.0,0.00019178,2]
[362640601,1748383832876,-430.0,0.00019178,2]
[362640603,1748383832886,-430.0,0.00019178,2]
[362640621,1748383833052,-430.0,0.00019178,2]
[362640624,1748383833063,-430.0,0.00019178,2]
[362640626,1748383833073,-430.0,0.00019178,2]
[362640628,1748383833083,-430.0,0.00019178,2]
[362640630,1748383833093,-430.0,0.00019178,2]
[362640632,1748383833102,-362.78658945,0.00019178,2]
[362640634,1748383833112,-430.0,0.00019178,2]
[362640636,1748383833121,-400.0,0.00019178,2]
[362640638,1748383833131,-430.0,0.00019178,2]
[362640639,1748383833141,-450.0,0.00019178,2]
[362640641,1748383833151,-400.0,0.00019178,2]
[362640643,1748383833161,-400.0,0.00019178,2]
[362640644,1748383833170,-400.0,0.00019178,2]
[362640646,1748383833180,-430.0,0.00019178,2]
[362640648,1748383833189,-450.0,0.00019178,2]
[362640650,1748383833199,-407.05376416,0.00019178,2]
[362640652,1748383833209,-450.0,0.00019178,2]
[362640654,1748383833219,-207.6195247,0.00019178,2]
[362640656,1748383833229,-450.0,0.00019178,2]
[362640658,1748383833238,-430.0,0.00019178,2]
[362640660,1748383833248,-430.0,0.00019178,2]
[362640662,1748383833258,-414.78872611,0.00019178,2]
[362640664,1748383833268,-450.0,0.00019178,2]
[362640666,1748383833277,-350.80488444,0.00019178,2]
[362640668,1748383833287,-451.20599261,0.00019178,2]
[362640670,1748383833296,-430.0,0.00019178,2]
[362640672,1748383833306,-451.08331362,0.00019178,2]
[362640674,1748383833315,-450.0,0.00019178,2]
[362640676,1748383833326,-450.0,0.00019178,2]
[362640678,1748383833335,-451.05281378,0.00019178,2]
[362640680,1748383833344,-430.0,0.00019178,2]
[362640682,1748383833354,-450.0,0.00019178,2]
[362640684,1748383833363,-420.50975044,0.00019178,2]
[362640686,1748383833373,-450.0,0.00019178,2]
[362640687,1748383833383,-430.0,0.00019178,2]
[362640689,1748383833393,-450.0,0.00019178,2]
[362640691,1748383833403,-430.0,0.00019178,2]
[362640693,1748383833414,-430.0,0.00019178,2]
[362640695,1748383833424,-539.12081235,0.00019178,2]
[362640697,1748383833433,-450.0,0.00019178,2]
[362640700,1748383833445,-450.0,0.00019178,2]
[362640701,1748383833454,-450.0,0.00019178,2]
[362640703,1748383833465,-450.0,0.00019178,2]
[362640705,1748383833478,-430.0,0.00019178,2]
[362640708,1748383833488,-450.0,0.00019178,2]
[362640709,1748383833498,-430.0,0.00019178,2]
[362640711,1748383833509,-450.0,0.00019178,2]
[362640714,1748383833519,-430.0,0.00019178,2]
[362640715,1748383833529,-450.0,0.00019178,2]
[362640718,1748383833539,-400.0,0.00019178,2]
[362640720,1748383833549,-430.0,0.00019178,2]
[362640722,1748383833559,-430.0,0.00019178,2]
[362640723,1748383833568,-450.0,0.00019178,2]
[362640725,1748383833578,-554.74,0.00019178,2]
[362640727,1748383833587,-400.0,0.00019178,2]
[362640729,1748383833597,-430.0,0.00019178,2]
[362640731,1748383833606,-400.0,0.00019178,2]
[362640733,1748383833615,-430.0,0.00019178,2]
[362640735,1748383833625,-430.0,0.00019178,2]
[362640737,1748383833637,-430.0,0.00019178,2]
[362640739,1748383833649,-447.84,0.00019178,2]
[362640741,1748383833659,-430.0,0.00019178,2]
[362640743,1748383833668,-430.0,0.00019178,2]
[362640745,1748383833678,-430.0,0.00019178,2]
[362640748,1748383833688,-430.0,0.00019178,2]
[362640750,1748383833697,-428.81033719,0.00019178,2]
[362640751,1748383833706,-501.66825173,0.00019178,2]
[362640753,1748383833716,-430.0,0.00019178,2]
[362640755,1748383833726,-430.0,0.00019178,2]
[362640758,1748383833737,-430.0,0.00019178,2]
[362640760,1748383833748,-338.15139022,0.00019178,2]
[362640762,1748383833758,-430.0,0.00019178,2]
[362640763,1748383833767,-430.0,0.00019178,2]
[362640765,1748383833777,-430.0,0.00019178,2]
[362640767,1748383833786,-430.0,0.00019178,2]
[362640769,1748383833796,-430.0,0.00019178,2]
[362640771,1748383833805,-400.0,0.00019178,2]
[362640773,1748383833814,-430.0,0.00019178,2]
[362640775,1748383833824,-430.0,0.00019178,2]
[362640777,1748383833833,-403.21878443,0.00019178,2]
[362640779,1748383833843,-370.0,0.00019178,2]
[362640781,1748383833852,-430.0,0.00019178,2]
[362640783,1748383833861,-150.96260043,0.00019178,2]
[362640785,1748383833871,-430.0,0.00019178,2]
[362640787,1748383833880,-406.14284983,0.00019178,2]
[362640789,1748383833889,-430.0,0.00019178,2]
[362640791,1748383833899,-430.0,0.00019178,2]
[362640792,1748383833909,-430.0,0.00019178,2]
[362640793,1748383833918,-430.0,0.00019178,2]
[362640794,1748383833928,-430.0,0.00019178,2]
[362640795,1748383833937,-430.0,0.00019178,2]
[362640796,1748383833947,-430.0,0.00019178,2]
[362640797,1748383833956,-430.0,0.00019178,2]
[362640798,1748383833966,-430.0,0.00019178,2]
[362640799,1748383833975,-420.0,0.00019178,2]
[362640800,1748383833985,-243.7078941,0.00019178,2]
[362640801,1748383833996,-430.0,0.00019178,2]
[362640802,1748383834006,-430.0,0.00019178,2]
[362640803,1748383834015,-430.0,0.00019178,2]
[362640804,1748383834025,-430.0,0.00019178,2]
[362640805,1748383834035,-430.0,0.00019178,2]
[362640806,1748383834044,-430.63332418,0.00019178,2]
[362640807,1748383834054,-431.70411064,0.00019178,2]
[362640808,1748383834064,-431.06022696,0.00019178,2]
[362640809,1748383834073,-431.01518832,0.00019178,2]
[362640810,1748383834083,-431.59099238,0.00019178,2]
[362640811,1748383834092,-430.0,0.00019178,2]
[362640812,1748383834102,-430.0,0.00019178,2]
[362640813,1748383834113,-435.27183413,0.00019178,2]
[362640814,1748383834123,-430.0,0.00019178,2]
[362640815,1748383834133,-430.0,0.00019178,2]
[362640816,1748383834142,-430.0,0.00019178,2]
[362640817,1748383834154,-430.0,0.00019178,2]
[362640818,1748383834164,-442.44,0.00019178,2]
[362640819,1748383834173,-430.0,0.00019178,2]
[362640821,1748383834183,-430.0,0.00019178,2]
[362640822,1748383834193,-430.0,0.00019178,2]
[362640824,1748383834203,-430.0,0.00019178,2]
[362640826,1748383834214,-430.51694996,0.00019178,2]
[362640828,1748383834224,-430.0,0.00019178,2]
[362640830,1748383834233,-430.0,0.00019178,2]
[362640832,1748383834243,-430.0,0.00019178,2]
[362640834,1748383834253,-430.0,0.00019178,2]
[362640836,1748383834262,-430.0,0.00019178,2]
[362640838,1748383834271,-430.0,0.00019178,2]
[362640840,1748383834281,-430.0,0.00019178,2]
[362640842,1748383834290,-430.0,0.00019178,2]
[362640844,1748383834300,-430.0,0.00019178,2]
[362640846,1748383834310,-430.0,0.00019178,2]
[362640848,1748383834319,-430.0,0.00019178,2]
[362640849,1748383834328,-430.0,0.00019178,2]
[362640852,1748383834338,-369.44123368,0.00019178,2]
[362640854,1748383834347,-225.63193988,0.00019178,2]
[362640855,1748383834357,-430.0,0.00019178,2]
[362640858,1748383834366,-450.0,0.00019178,2]
[362640860,1748383834376,-430.0,0.00019178,2]
[362640861,1748383834385,-450.0,0.00019178,2]
[362640863,1748383834395,-430.0,0.00019178,2]
[362640865,1748383834404,-430.0,0.00019178,2]
[362640867,1748383834413,-430.0,0.00019178,2]
[362640869,1748383834423,-401.49548055,0.00019178,2]
[362640871,1748383834433,-247.17045248,0.00019178,2]
[362641134,1748383838294,-182.82954752,0.00019178,2]
[362641136,1748383838303,-430.0,0.00019178,2]
[362641137,1748383838313,-430.0,0.00019178,2]
[362641138,1748383838322,-401.31841447,0.00019178,2]
[362641139,1748383838331,-357.35223421,0.00019178,2]
[362641838,1748383846260,-72.64776579,0.00019178,2]
[362641840,1748383846270,-430.0,0.00019178,2]
[362641842,1748383846280,-430.0,0.00019178,2]
[362641844,1748383846290,-430.0,0.00019178,2]
[362641846,1748383846299,-430.0,0.00019178,2]
[362641848,1748383846308,-430.0,0.00019178,2]
[362641850,1748383846318,-430.0,0.00019178,2]
[362641852,1748383846327,-430.0,0.00019178,2]
[362641853,1748383846339,-350.0,0.00019178,2]
[362641855,1748383846349,-401.70462869,0.00019178,2]
[362641857,1748383846358,-430.0,0.00019178,2]
[362641859,1748383846367,-478.26,0.00019178,2]
[362641861,1748383846377,-430.0,0.00019178,2]
[362641864,1748383846386,-450.0,0.00019178,2]
[362641867,1748383846395,-430.0,0.00019178,2]
[362641869,1748383846406,-430.0,0.00019178,2]
[362641871,1748383846415,-430.0,0.00019178,2]
[362641873,1748383846424,-304.80428803,0.00019178,2]
[362641875,1748383846433,-430.0,0.00019178,2]
[362641877,1748383846443,-430.0,0.00019178,2]
[362641879,1748383846452,-430.0,0.00019178,2]
[362641881,1748383846463,-430.0,0.00019178,2]
[362641882,1748383846474,-491.3,0.00019178,2]
[362641884,1748383846483,-163.06617706,0.00019178,2]
[362641886,1748383846493,-430.0,0.00019178,2]
[362641888,1748383846502,-430.0,0.00019178,2]
[362641890,1748383846512,-430.0,0.00019178,2]
[362641892,1748383846522,-430.0,0.00019178,2]
[362641894,1748383846531,-430.0,0.00019178,2]
[362641896,1748383846541,-335.14843857,0.00019178,2]
[362641898,1748383846551,-500.0,0.00019178,2]
[362641900,1748383846561,-500.0,0.00019178,2]
[362641902,1748383846571,-254.2059472,0.00019178,2]
[362641904,1748383846580,-430.0,0.00019178,2]
[362641906,1748383846590,-430.0,0.00019178,2]
[362641908,1748383846599,-430.0,0.00019178,2]
[362641910,1748383846608,-430.0,0.00019178,2]
[362641912,1748383846618,-430.0,0.00019178,2]
[362641914,1748383846627,-430.0,0.00019178,2]
[362641916,1748383846637,-430.0,0.00019178,2]
[362641918,1748383846646,-430.0,0.00019178,2]
[362641919,1748383846656,-430.0,0.00019178,2]
[362641921,1748383846665,-430.0,0.00019178,2]
[362641923,1748383846675,-433.04701437,0.00019178,2]
[362641925,1748383846686,-430.0,0.00019178,2]
[362641927,1748383846695,-430.0,0.00019178,2]
[362641929,1748383846705,-430.0,0.00019178,2]
[362641931,1748383846718,-430.0,0.00019178,2]
[362641933,1748383846729,-430.0,0.00019178,2]
[362641935,1748383846739,-430.0,0.00019178,2]
[362641937,1748383846749,-451.66,0.00019178,2]
[362641939,1748383846766,-430.0,0.00019178,2]
[362641941,1748383846776,-430.0,0.00019178,2]
[362641943,1748383846787,-430.0,0.00019178,2]
[362641945,1748383846797,-430.0,0.00019178,2]
[362641947,1748383846807,-540.02,0.00019178,2]
[362641949,1748383846816,-430.0,0.00019178,2]
[362641951,1748383846825,-430.0,0.00019178,2]
[362641953,1748383846835,-430.0,0.00019178,2]
[362641955,1748383846844,-430.0,0.00019178,2]
[362641957,1748383846853,-430.0,0.00019178,2]
[362641959,1748383846862,-430.0,0.00019178,2]
[362641961,1748383846871,-430.0,0.00019178,2]
[362641963,1748383846881,-430.0,0.00019178,2]
[362641964,1748383846890,-430.0,0.00019178,2]
[362641966,1748383846899,-430.0,0.00019178,2]
[362641968,1748383846910,-430.0,0.00019178,2]
[362641970,1748383846919,-433.60472095,0.00019178,2]
[362641972,1748383846929,-430.0,0.00019178,2]
[362641974,1748383846939,-430.0,0.00019178,2]
[362641976,1748383846948,-516.88429869,0.00019178,2]
[362641978,1748383846957,-430.0,0.00019178,2]
[362641980,1748383846966,-430.0,0.00019178,2]
[362641982,1748383846977,-430.0,0.00019178,2]
[362641984,1748383846986,-194.6266197,0.00019178,2]
[362641986,1748383846995,-430.0,0.00019178,2]
[362641988,1748383847004,-430.0,0.00019178,2]
[362641990,1748383847013,-430.0,0.00019178,2]
[362641992,1748383847022,-430.0,0.00019178,2]
[362641994,1748383847031,-430.0,0.00019178,2]
[362641995,1748383847040,-430.0,0.00019178,2]
[362641997,1748383847051,-430.0,0.00019178,2]
[362641999,1748383847060,-430.0,0.00019178,2]
[362642001,1748383847069,-400.0,0.00019178,2]
[362642003,1748383847078,-167.23489735,0.00019178,2]
[362642005,1748383847087,-430.0,0.00019178,2]
[362642007,1748383847098,-430.0,0.00019178,2]
[362642009,1748383847106,-430.0,0.00019178,2]
[362642011,1748383847115,-430.0,0.00019178,2]
[362642013,1748383847125,-430.0,0.00019178,2]
[362642015,1748383847134,-430.0,0.00019178,2]
[362642017,1748383847143,-430.0,0.00019178,2]
[362642019,1748383847155,-430.0,0.00019178,2]
[362642021,1748383847164,-430.0,0.00019178,2]
[362642023,1748383847174,-432.23953005,0.00019178,2]
[362642025,1748383847183,-430.0,0.00019178,2]
[362642027,1748383847192,-400.0,0.00019178,2]
[362642029,1748383847202,-432.16107037,0.00019178,2]
[362642031,1748383847211,-430.0,0.00019178,2]
[362642033,1748383847220,-430.0,0.00019178,2]
[362642035,1748383847230,-155.0,0.00019178,2]
[362642037,1748383847239,-430.0,0.00019178,2]
[362642039,1748383847248,-340.0,0.00019178,2]
[362642040,1748383847258,-522.66,0.00019178,2]
[362642042,1748383847268,-430.0,0.00019178,2]
[362642044,1748383847277,-170.87102801,0.00019178,2]
[362642046,1748383847287,-181.456279,0.00019178,2]
[362642048,1748383847296,-500.0,0.00019278,2]
[362642050,1748383847305,-430.0,0.00019452,2]
[362642052,1748383847315,-430.0,0.00019452,2]
[362642054,1748383847324,-430.0,0.00019452,2]
[362642056,1748383847333,-430.0,0.00019452,2]
[362642058,1748383847347,-430.0,0.00019452,2]
[362642060,1748383847357,-430.0,0.00019452,2]
[362642062,1748383847367,-245.40237075,0.00019452,2]
[362642065,1748383847380,-184.59762925,0.00019452,2]
[362642067,1748383847389,-430.0,0.00019452,2]
[362642069,1748383847398,-430.0,0.00019452,2]
[362642071,1748383847409,-430.0,0.00019452,2]
[362642073,1748383847418,-430.0,0.00019452,2]
[362642074,1748383847427,-240.94588292,0.00019452,2]
[362643908,1748384376617,-2847.4195424,0.00018314,2]
[362643909,1748384376640,-464.0362829,0.00018391,2]
[362643910,1748384376662,-242.66971164,0.000189,2]
[362643911,1748384376683,-415.92114175,0.00019076,2]
[362643912,1748384376705,-300.0,0.00019174,2]
[362643913,1748384376730,-500.0,0.00019175,2]
[362643914,1748384376752,-18.95332131,0.00019175,2]
[362643916,1748384525876,334.334733,0.00013699,2]
[362644056,1748384834097,-313.94113085,0.00018524,2]
[362644123,1748385032483,-5000.0,0.00017845,2]
[362644124,1748385032493,-300.0,0.00018025,2]
[362644125,1748385032502,-300.0,0.00018025,2]
[362644126,1748385032512,-1200.0,0.00018025,2]
[362644127,1748385032522,-24900.0,0.00018026,2]
[362644128,1748385032531,-1041.85863105,0.00018662,2]
[362644129,1748385032540,-550.63966727,0.00018728,2]
[362644130,1748385032549,-165.09932785,0.000188,7]
[362644131,1748385032559,-161.77980776,0.000189,2]
[362644132,1748385032568,-1937.22846602,0.000189,2]
[362644133,1748385032577,-50000.0,0.0001891,2]
[362644134,1748385032586,-550.63966727,0.0001902,2]
[362644135,1748385032595,-910.65320872,0.00019078,2]
[362644136,1748385032603,-500.0,0.00019105,2]
[362644137,1748385032613,-385.12168076,0.00019105,2]
[362644138,1748385032623,-500.0,0.00019105,2]
[362644139,1748385032632,-425.06045616,0.00019105,2]
[362644140,1748385032641,-500.0,0.00019105,2]
[362644142,1748385032650,-500.0,0.00019105,2]
[362644145,1748385032659,-496.2240891,0.00019105,2]
[362644148,1748385032668,-500.0,0.00019105,2]
[362644150,1748385032679,-500.0,0.00019105,2]
[362644153,1748385032689,-500.0,0.00019105,2]
[362644155,1748385032698,-500.0,0.00019105,2]
[362644157,1748385032709,-500.0,0.00019105,2]
[362644159,1748385032718,-500.0,0.00019105,2]
[362644161,1748385032729,-500.0,0.00019105,2]
[362644163,1748385032739,-500.0,0.00019105,2]
[362644165,1748385032748,-500.0,0.00019105,2]
[362644167,1748385032757,-500.0,0.00019105,2]
[362644169,1748385032768,-500.0,0.00019105,2]
[362644171,1748385032780,-620.0,0.00019105,2]
[362644173,1748385032789,-500.0,0.00019105,2]
[362644175,1748385032798,-500.0,0.00019105,2]
[362644177,1748385032808,-500.0,0.00019105,2]
[362644179,1748385032817,-500.0,0.00019105,2]
[362644181,1748385032826,-500.0,0.00019105,2]
[362644183,1748385032835,-500.0,0.00019105,2]
[362644185,1748385032848,-400.0,0.00019105,2]
[362644187,1748385032857,-1937.22846601,0.00019107,2]
[362644189,1748385032866,-500.0,0.00019173,2]
[362644191,1748385032876,-223.35908659,0.00019173,2]
[362644193,1748385032886,-500.83744052,0.00019173,2]
[362644195,1748385032895,-500.0,0.00019173,2]
[362644197,1748385032905,-603.70077833,0.00019173,2]
[362644199,1748385032914,-502.37133137,0.00019173,2]
[362644201,1748385032925,-500.0,0.00019173,2]
[362644203,1748385032935,-500.0,0.00019173,2]
[362644205,1748385032944,-502.55203898,0.00019173,2]
[362644206,1748385032956,-500.0,0.00019173,2]
[362644208,1748385032967,-500.0,0.00019173,2]
[362644210,1748385032976,-12656.54583329,0.00019178,3]
[362644211,1748385032986,-314.71326974,0.00019178,3]
[362644212,1748385032996,-20749.3520384,0.00019178,3]
[362644214,1748385033005,-40111.04151627,0.00019178,2]
[362644215,1748385033015,-464.32688864,0.00019178,2]
[362644217,1748385033024,-430.0,0.00019178,2]
[362644219,1748385033034,-400.44991057,0.00019178,2]
[362644221,1748385033044,-262.59688397,0.00019178,2]
[362644223,1748385033054,-404.55519554,0.00019178,2]
[362644225,1748385033064,-430.0,0.00019178,2]
[362644226,1748385033074,-414.60086281,0.00019178,2]
[362644228,1748385033084,-430.0,0.00019178,2]
[362644230,1748385033093,-430.0,0.00019178,2]
[362644232,1748385033103,-483.51507084,0.00019178,2]
[362644234,1748385033113,-430.0,0.00019178,2]
[362644236,1748385033123,-454.5639248,0.00019178,2]
[362644238,1748385033134,-342.92169423,0.00019178,2]
[362644240,1748385033143,-453.19469808,0.00019178,2]
[362644242,1748385033153,-430.0,0.00019178,2]
[362644244,1748385033163,-400.43682728,0.00019178,2]
[362644246,1748385033172,-400.12647874,0.00019178,2]
[362644248,1748385033182,-390.42739517,0.00019178,2]
[362644250,1748385033193,-500.0,0.00019178,2]
[362644252,1748385033205,-450.0,0.00019178,2]
[362644254,1748385033215,-500.0,0.00019178,2]
[362644256,1748385033225,-430.0,0.00019178,2]
[362644258,1748385033235,-425.09329993,0.00019178,2]
[362644260,1748385033245,-504.98298771,0.00019178,2]
[362644262,1748385033255,-430.0,0.00019178,2]
[362644264,1748385033264,-430.0,0.00019178,2]
[362644266,1748385033274,-450.61126204,0.00019178,2]
[362644268,1748385033284,-430.0,0.00019178,2]
[362644270,1748385033294,-430.0,0.00019178,2]
[362644272,1748385033303,-430.0,0.00019178,2]
[362644274,1748385033313,-430.0,0.00019178,2]
[362644276,1748385033323,-430.0,0.00019178,2]
[362644278,1748385033332,-430.0,0.00019178,2]
[362644280,1748385033342,-430.0,0.00019178,2]
[362644282,1748385033352,-430.0,0.00019178,2]